[Event "Titled Tuesday Blitz February 21 Late 2023"]
[White "Goroshkov, Maksym"]
[Black "Gamage, Wanshini Vidusama"]
[WhiteFideId "14142716"]
[BlackFideId "9953752"]
[WhiteElo "2287"]
[BlackElo "1089"]
[Result "1-0"]
[Round "01"]
[TimeControl "180+2"]
[Date "2023.02.21"]
[WhiteClock "0:01:20"]
[BlackClock "0:00:02"]

1. e4 {[%clk 0:02:59]}  c5 {[%clk 0:02:59]} 2. d4 {[%clk 0:02:56]}  cxd4 {[%clk 0:02:59]} 3. c3 {[%clk 0:02:56]}  Nf6 {[%clk 0:02:59]} 4. e5 {[%clk 0:02:55]}  Nd5 {[%clk 0:03:00]} 5. Bc4 {[%clk 0:02:54]}  Nb6 {[%clk 0:02:58]} 6. Bb3 {[%clk 0:02:53]}  d5 {[%clk 0:02:57]} 7. exd6 {[%clk 0:02:50]}  Qxd6 {[%clk 0:02:56]} 8. cxd4 {[%clk 0:02:50]}  Be6 {[%clk 0:02:48]} 9. Nf3 {[%clk 0:02:49]}  Bxb3 {[%clk 0:02:47]} 10. Qxb3 {[%clk 0:02:49]}  e6 {[%clk 0:02:44]} 11. O-O {[%clk 0:02:49]}  Be7 {[%clk 0:02:41]} 12. Nc3 {[%clk 0:02:49]}  Nc6 {[%clk 0:02:33]} 13. Be3 {[%clk 0:02:43]}  O-O {[%clk 0:02:30]} 14. Rad1 {[%clk 0:02:37]}  Qb4 {[%clk 0:02:23]} 15. Qc2 {[%clk 0:02:27]}  Nc4 {[%clk 0:02:16]} 16. b3 {[%clk 0:02:24]}  Nxe3 {[%clk 0:02:14]} 17. fxe3 {[%clk 0:02:25]}  Rac8 {[%clk 0:02:15]} 18. Qb2 {[%clk 0:02:19]}  Nxd4 {[%clk 0:02:06]} 19. Rxd4 {[%clk 0:02:12]}  Qxc3 {[%clk 0:02:06]} 20. Qxc3 {[%clk 0:02:12]}  Rxc3 {[%clk 0:02:06]} 21. Rd7 {[%clk 0:02:13]}  Bc5 {[%clk 0:02:06]} 22. Rxb7 {[%clk 0:02:13]}  Bxe3+ {[%clk 0:01:55]} 23. Kh1 {[%clk 0:02:13]}  Rfc8 {[%clk 0:01:54]} 24. h3 {[%clk 0:02:07]}  R3c7 {[%clk 0:01:37]} 25. Rxc7 {[%clk 0:02:03]}  Rxc7 {[%clk 0:01:37]} 26. Rd1 {[%clk 0:02:04]}  f6 {[%clk 0:01:32]} 27. Re1 {[%clk 0:02:02]}  Rc1 {[%clk 0:01:32]} 28. Rxc1 {[%clk 0:02:01]}  Bxc1 {[%clk 0:01:33]} 29. Nd4 {[%clk 0:02:02]}  Kf7 {[%clk 0:01:31]} 30. Nc6 {[%clk 0:02:02]}  Be3 {[%clk 0:01:30]} 31. g4 {[%clk 0:01:59]}  e5 {[%clk 0:01:23]} 32. Kg2 {[%clk 0:02:00]}  Ke6 {[%clk 0:01:23]} 33. Kf3 {[%clk 0:02:00]}  Bb6 {[%clk 0:01:20]} 34. a4 {[%clk 0:01:57]}  a5 {[%clk 0:01:10]} 35. b4 {[%clk 0:01:55]}  axb4 {[%clk 0:01:10]} 36. Nxb4 {[%clk 0:01:56]}  g6 {[%clk 0:01:05]} 37. Nc6 {[%clk 0:01:54]}  Kd7 {[%clk 0:01:01]} 38. Nb4 {[%clk 0:01:53]}  Kd6 {[%clk 0:00:57]} 39. Ke4 {[%clk 0:01:52]}  Bc5 {[%clk 0:00:53]} 40. Nd3 {[%clk 0:01:46]}  Bb6 {[%clk 0:00:48]} 41. Nb4 {[%clk 0:01:45]}  Ke6 {[%clk 0:00:47]} 42. Nc6 {[%clk 0:01:42]}  f5+ {[%clk 0:00:46]} 43. Kf3 {[%clk 0:01:42]}  e4+ {[%clk 0:00:44]} 44. Kf4 {[%clk 0:01:40]}  Bc7+ {[%clk 0:00:43]} 45. Ke3 {[%clk 0:01:40]}  h6 {[%clk 0:00:32]} 46. a5 {[%clk 0:01:29]}  Kd7 {[%clk 0:00:20]} 47. gxf5 {[%clk 0:01:20]}  gxf5 {[%clk 0:00:19]} 48. Nd4 {[%clk 0:01:21]}  Bxa5 {[%clk 0:00:15]} 49. Nxf5 {[%clk 0:01:20]}  Ke6 {[%clk 0:00:13]} 50. Kxe4 {[%clk 0:01:20]}  h5 {[%clk 0:00:10]} 51. Ng7+ {[%clk 0:01:20]}  Kf6 {[%clk 0:00:02]} 52. Nxh5+ {[%clk 0:01:20]} 1-0


[Site "https://www.chess.com"]

[Event "Titled Tuesday Blitz February 21 Late 2023"]
[White "Stachanczyk, Jacek"]
[Black "Poliakova, Varvara"]
[WhiteFideId "1116657"]
[BlackFideId "13518313"]
[WhiteElo "2147"]
[BlackElo "2010"]
[Result "0-1"]
[Round "01"]
[TimeControl "180+2"]
[Date "2023.02.21"]
[WhiteClock "0:00:04"]
[BlackClock "0:01:01"]

1. e4 {[%clk 0:02:57]}  e5 {[%clk 0:02:59]} 2. Nf3 {[%clk 0:02:56]}  Nc6 {[%clk 0:02:56]} 3. Bb5 {[%clk 0:02:56]}  a6 {[%clk 0:02:56]} 4. Ba4 {[%clk 0:02:53]}  Nf6 {[%clk 0:02:56]} 5. O-O {[%clk 0:02:53]}  Be7 {[%clk 0:02:54]} 6. Re1 {[%clk 0:02:53]}  b5 {[%clk 0:02:55]} 7. Bb3 {[%clk 0:02:53]}  d6 {[%clk 0:02:56]} 8. c3 {[%clk 0:02:52]}  O-O {[%clk 0:02:56]} 9. h3 {[%clk 0:02:52]}  Bb7 {[%clk 0:02:54]} 10. d4 {[%clk 0:02:51]}  h6 {[%clk 0:02:54]} 11. Nbd2 {[%clk 0:02:45]}  Re8 {[%clk 0:02:53]} 12. a4 {[%clk 0:02:43]}  Bf8 {[%clk 0:02:53]} 13. Bc2 {[%clk 0:02:40]}  exd4 {[%clk 0:02:49]} 14. cxd4 {[%clk 0:02:41]}  Nb4 {[%clk 0:02:50]} 15. Bb1 {[%clk 0:02:40]}  c5 {[%clk 0:02:50]} 16. d5 {[%clk 0:02:40]}  Nd7 {[%clk 0:02:50]} 17. Ra3 {[%clk 0:02:35]}  Qf6 {[%clk 0:02:43]} 18. Rae3 {[%clk 0:02:07]}  c4 {[%clk 0:02:28]} 19. Nh2 {[%clk 0:01:47]}  Nc5 {[%clk 0:02:26]} 20. Ndf3 {[%clk 0:01:29]}  Ncd3 {[%clk 0:02:22]} 21. Ng4 {[%clk 0:01:28]}  Qd8 {[%clk 0:02:09]} 22. Nd4 {[%clk 0:01:28]}  Nxe1 {[%clk 0:02:07]} 23. Qxe1 {[%clk 0:01:29]}  Qb6 {[%clk 0:01:58]} 24. Qxb4 {[%clk 0:01:04]}  Qxd4 {[%clk 0:01:56]} 25. Bc2 {[%clk 0:01:02]}  f5 {[%clk 0:01:50]} 26. exf5 {[%clk 0:00:44]}  Qxd5 {[%clk 0:01:47]} 27. Rg3 {[%clk 0:00:43]}  Kh8 {[%clk 0:01:25]} 28. f6 {[%clk 0:00:37]}  a5 {[%clk 0:01:19]} 29. Qd2 {[%clk 0:00:18]}  Qxd2 {[%clk 0:01:14]} 30. Bxd2 {[%clk 0:00:17]}  Re2 {[%clk 0:01:14]} 31. Bc3 {[%clk 0:00:10]}  Rxc2 {[%clk 0:01:12]} 32. fxg7+ {[%clk 0:00:10]}  Bxg7 {[%clk 0:01:12]} 33. Bxg7+ {[%clk 0:00:09]}  Kxg7 {[%clk 0:01:13]} 34. Ne3+ {[%clk 0:00:10]}  Kf6 {[%clk 0:01:12]} 35. Nxc2 {[%clk 0:00:11]}  b4 {[%clk 0:01:10]} 36. Rg4 {[%clk 0:00:09]}  d5 {[%clk 0:01:10]} 37. h4 {[%clk 0:00:08]}  Re8 {[%clk 0:01:10]} 38. h5 {[%clk 0:00:08]}  Re2 {[%clk 0:01:08]} 39. Nd4 {[%clk 0:00:06]}  Rxb2 {[%clk 0:01:07]} 40. f4 {[%clk 0:00:04]}  c3 {[%clk 0:01:02]} 41. Rg6+ {[%clk 0:00:05]}  Kf7 {[%clk 0:01:02]} 42. f5 {[%clk 0:00:04]}  c2 {[%clk 0:01:01]} 0-1


[Site "https://www.chess.com"]

[Event "Titled Tuesday Blitz February 21 Late 2023"]
[White "Ladopoulos, Dimitrios"]
[Black "Lorenzo De La Riva, Lazaro"]
[WhiteFideId "4239580"]
[BlackFideId "2268809"]
[WhiteElo "2391"]
[BlackElo "2404"]
[Result "1-0"]
[Round "01"]
[TimeControl "180+2"]
[Date "2023.02.21"]
[WhiteClock "0:00:07"]
[BlackClock "0:00:14"]

1. d4 {[%clk 0:02:58]}  Nf6 {[%clk 0:02:52]} 2. Nf3 {[%clk 0:02:58]}  d6 {[%clk 0:02:51]} 3. c4 {[%clk 0:02:55]}  g6 {[%clk 0:02:49]} 4. g3 {[%clk 0:02:54]}  Bg7 {[%clk 0:02:48]} 5. Bg2 {[%clk 0:02:45]}  O-O {[%clk 0:02:49]} 6. O-O {[%clk 0:02:44]}  Nc6 {[%clk 0:02:48]} 7. Nc3 {[%clk 0:02:44]}  e5 {[%clk 0:02:48]} 8. h3 {[%clk 0:02:41]}  Re8 {[%clk 0:02:36]} 9. Re1 {[%clk 0:02:27]}  e4 {[%clk 0:02:27]} 10. Ng5 {[%clk 0:02:25]}  Bf5 {[%clk 0:02:26]} 11. g4 {[%clk 0:02:24]}  h6 {[%clk 0:02:12]} 12. gxf5 {[%clk 0:02:10]}  hxg5 {[%clk 0:02:11]} 13. fxg6 {[%clk 0:02:11]}  Qd7 {[%clk 0:01:37]} 14. gxf7+ {[%clk 0:02:05]}  Kxf7 {[%clk 0:01:38]} 15. Bxg5 {[%clk 0:02:05]}  Qf5 {[%clk 0:01:37]} 16. h4 {[%clk 0:01:55]}  Ng4 {[%clk 0:01:31]} 17. f3 {[%clk 0:01:26]}  Bxd4+ {[%clk 0:01:12]} 18. e3 {[%clk 0:01:25]}  exf3 {[%clk 0:00:54]} 19. Qxf3 {[%clk 0:00:44]}  Nxe3 {[%clk 0:00:36]} 20. Qh5+ {[%clk 0:00:30]}  Qg6 {[%clk 0:00:24]} 21. Qf3+ {[%clk 0:00:19]}  Qf5 {[%clk 0:00:23]} 22. Bxe3 {[%clk 0:00:10]}  Qxf3 {[%clk 0:00:22]} 23. Bxf3 {[%clk 0:00:11]}  Rxe3 {[%clk 0:00:21]} 24. Rxe3 {[%clk 0:00:06]}  Bxe3+ {[%clk 0:00:22]} 25. Kh2 {[%clk 0:00:06]}  Kf6 {[%clk 0:00:20]} 26. Nd5+ {[%clk 0:00:06]}  Ke5 {[%clk 0:00:19]} 27. Nxe3 {[%clk 0:00:07]}  Kf4 {[%clk 0:00:18]} 28. Bxc6 {[%clk 0:00:06]}  bxc6 {[%clk 0:00:17]} 29. Ng2+ {[%clk 0:00:07]}  Kg4 {[%clk 0:00:17]} 30. b3 {[%clk 0:00:08]}  Re8 {[%clk 0:00:16]} 31. Rf1 {[%clk 0:00:08]}  Re2 {[%clk 0:00:17]} 32. Rf4+ {[%clk 0:00:05]}  Kh5 {[%clk 0:00:17]} 33. Rf7 {[%clk 0:00:05]}  Rxa2 {[%clk 0:00:15]} 34. Rxc7 {[%clk 0:00:05]}  Rb2 {[%clk 0:00:15]} 35. Rxc6 {[%clk 0:00:05]}  Rxb3 {[%clk 0:00:15]} 36. Rxd6 {[%clk 0:00:06]}  Rc3 {[%clk 0:00:16]} 37. Rd5+ {[%clk 0:00:06]}  Kg4 {[%clk 0:00:15]} 38. Rg5+ {[%clk 0:00:06]}  Kf3 {[%clk 0:00:14]} 39. Rg3+ {[%clk 0:00:07]} 1-0


[Site "https://www.chess.com"]

[Event "Titled Tuesday Blitz February 21 Late 2023"]
[White "Arvelo Leo, Gian Carlo"]
[Black "Maltsevskaya, Aleksandra"]
[WhiteFideId "6402720"]
[BlackFideId "24174041"]
[WhiteElo "2075"]
[BlackElo "2390"]
[Result "0-1"]
[Round "01"]
[TimeControl "180+2"]
[Date "2023.02.21"]
[WhiteClock "0:00:16"]
[BlackClock "0:00:43"]

1. Nf3 {[%clk 0:03:00]}  c5 {[%clk 0:02:33]} 2. c4 {[%clk 0:03:00]}  Nc6 {[%clk 0:02:25]} 3. Nc3 {[%clk 0:02:58]}  Nf6 {[%clk 0:02:25]} 4. g3 {[%clk 0:02:58]}  g6 {[%clk 0:02:26]} 5. Bg2 {[%clk 0:02:57]}  Bg7 {[%clk 0:02:27]} 6. O-O {[%clk 0:02:58]}  O-O {[%clk 0:02:28]} 7. d3 {[%clk 0:02:52]}  a6 {[%clk 0:02:27]} 8. a3 {[%clk 0:02:50]}  Rb8 {[%clk 0:02:26]} 9. Rb1 {[%clk 0:02:50]}  b5 {[%clk 0:02:26]} 10. cxb5 {[%clk 0:02:51]}  axb5 {[%clk 0:02:27]} 11. b4 {[%clk 0:02:52]}  cxb4 {[%clk 0:02:26]} 12. axb4 {[%clk 0:02:53]}  d6 {[%clk 0:02:07]} 13. Bd2 {[%clk 0:02:45]}  Be6 {[%clk 0:01:56]} 14. Qc2 {[%clk 0:02:30]}  Nd5 {[%clk 0:01:51]} 15. Nxd5 {[%clk 0:02:27]}  Bxd5 {[%clk 0:01:52]} 16. e4 {[%clk 0:02:17]}  Rc8 {[%clk 0:01:32]} 17. exd5 {[%clk 0:01:54]}  Nxb4 {[%clk 0:01:32]} 18. Qb3 {[%clk 0:01:47]}  Na6 {[%clk 0:01:32]} 19. d4 {[%clk 0:01:40]}  b4 {[%clk 0:01:31]} 20. Rfc1 {[%clk 0:01:39]}  Qb6 {[%clk 0:01:29]} 21. Be3 {[%clk 0:01:31]}  Rxc1+ {[%clk 0:01:12]} 22. Rxc1 {[%clk 0:01:30]}  Nc7 {[%clk 0:01:09]} 23. Rc6 {[%clk 0:01:13]}  Qa5 {[%clk 0:01:03]} 24. Nd2 {[%clk 0:01:12]}  Nb5 {[%clk 0:01:01]} 25. Nc4 {[%clk 0:01:05]}  Qa1+ {[%clk 0:00:59]} 26. Bf1 {[%clk 0:01:05]}  Nxd4 {[%clk 0:00:45]} 27. Bxd4 {[%clk 0:00:54]}  Bxd4 {[%clk 0:00:46]} 28. Qxb4 {[%clk 0:00:52]}  Ra8 {[%clk 0:00:46]} 29. Nb6 {[%clk 0:00:34]}  Ra2 {[%clk 0:00:44]} 30. Rc8+ {[%clk 0:00:30]}  Kg7 {[%clk 0:00:44]} 31. Rc1 {[%clk 0:00:17]}  Bxf2+ {[%clk 0:00:43]} 32. Kg2 {[%clk 0:00:16]}  Qxc1 {[%clk 0:00:43]} 0-1


[Site "https://www.chess.com"]

[Event "Titled Tuesday Blitz February 21 Late 2023"]
[White "Moral Garcia, Serafin"]
[Black "Ward, Ieuan C"]
[WhiteFideId "2201925"]
[BlackFideId "406627"]
[WhiteElo "2238"]
[BlackElo "2028"]
[Result "0-1"]
[Round "01"]
[TimeControl "180+2"]
[Date "2023.02.21"]
[WhiteClock "0:00:34"]
[BlackClock "0:00:15"]

1. Nf3 {[%clk 0:02:56]}  Nf6 {[%clk 0:02:59]} 2. b3 {[%clk 0:02:55]}  e6 {[%clk 0:02:59]} 3. Bb2 {[%clk 0:02:55]}  d5 {[%clk 0:03:00]} 4. c4 {[%clk 0:02:54]}  Be7 {[%clk 0:03:00]} 5. e3 {[%clk 0:02:54]}  O-O {[%clk 0:03:01]} 6. Nc3 {[%clk 0:02:53]}  c5 {[%clk 0:03:01]} 7. cxd5 {[%clk 0:02:53]}  Nxd5 {[%clk 0:02:58]} 8. Qc2 {[%clk 0:02:52]}  Nc6 {[%clk 0:02:51]} 9. a3 {[%clk 0:02:52]}  b6 {[%clk 0:02:45]} 10. Bd3 {[%clk 0:02:51]}  h6 {[%clk 0:02:41]} 11. Be4 {[%clk 0:02:42]}  Bb7 {[%clk 0:02:37]} 12. h4 {[%clk 0:02:34]}  Nxc3 {[%clk 0:02:29]} 13. Bxc3 {[%clk 0:02:31]}  Bf6 {[%clk 0:02:30]} 14. g4 {[%clk 0:02:29]}  Bxc3 {[%clk 0:02:28]} 15. Qxc3 {[%clk 0:02:29]}  f5 {[%clk 0:02:18]} 16. gxf5 {[%clk 0:02:15]}  exf5 {[%clk 0:02:18]} 17. Bd3 {[%clk 0:02:09]}  Qf6 {[%clk 0:01:52]} 18. Rg1 {[%clk 0:01:51]}  Qxc3 {[%clk 0:01:49]} 19. dxc3 {[%clk 0:01:52]}  Na5 {[%clk 0:01:44]} 20. Nd2 {[%clk 0:01:46]}  Rad8 {[%clk 0:01:41]} 21. Ke2 {[%clk 0:01:38]}  f4 {[%clk 0:01:13]} 22. e4 {[%clk 0:01:36]}  Rfe8 {[%clk 0:00:50]} 23. f3 {[%clk 0:01:35]}  Re7 {[%clk 0:00:29]} 24. Bc2 {[%clk 0:01:28]}  Red7 {[%clk 0:00:22]} 25. Rad1 {[%clk 0:01:27]}  Ba6+ {[%clk 0:00:20]} 26. c4 {[%clk 0:01:26]}  b5 {[%clk 0:00:19]} 27. cxb5 {[%clk 0:01:21]}  Bxb5+ {[%clk 0:00:19]} 28. Ke1 {[%clk 0:01:21]}  c4 {[%clk 0:00:16]} 29. b4 {[%clk 0:01:21]}  Nc6 {[%clk 0:00:15]} 30. Rg2 {[%clk 0:00:40]}  Nd4 {[%clk 0:00:14]} 31. Bb1 {[%clk 0:00:35]}  Nxf3+ {[%clk 0:00:14]} 32. Nxf3 {[%clk 0:00:33]}  Rxd1+ {[%clk 0:00:15]} 33. Ke2 {[%clk 0:00:33]}  Rxb1 {[%clk 0:00:15]} 34. Rg4 {[%clk 0:00:34]}  c3+ {[%clk 0:00:15]} 0-1


[Site "https://www.chess.com"]

[Event "Titled Tuesday Blitz February 21 Late 2023"]
[White "Stavri, Gligor"]
[Black "Djokic, Mihailo"]
[WhiteFideId "4706013"]
[BlackFideId "976440"]
[WhiteElo "1867"]
[BlackElo "2192"]
[Result "1-0"]
[Round "01"]
[TimeControl "180+2"]
[Date "2023.02.21"]
[WhiteClock "0:00:10"]
[BlackClock "0:00:02"]

1. d4 {[%clk 0:02:51]}  Nf6 {[%clk 0:02:59]} 2. c4 {[%clk 0:02:51]}  g6 {[%clk 0:02:59]} 3. Nc3 {[%clk 0:02:51]}  Bg7 {[%clk 0:02:59]} 4. e4 {[%clk 0:02:51]}  d6 {[%clk 0:02:59]} 5. h3 {[%clk 0:02:49]}  O-O {[%clk 0:02:59]} 6. Be3 {[%clk 0:02:49]}  Na6 {[%clk 0:03:00]} 7. g4 {[%clk 0:02:49]}  e5 {[%clk 0:02:59]} 8. d5 {[%clk 0:02:48]}  h5 {[%clk 0:02:58]} 9. f3 {[%clk 0:02:34]}  Nc5 {[%clk 0:02:54]} 10. Qd2 {[%clk 0:02:33]}  Kh7 {[%clk 0:02:52]} 11. O-O-O {[%clk 0:02:32]}  a5 {[%clk 0:02:47]} 12. Nge2 {[%clk 0:02:31]}  Bd7 {[%clk 0:02:44]} 13. Kb1 {[%clk 0:02:25]}  a4 {[%clk 0:02:43]} 14. Rg1 {[%clk 0:02:23]}  a3 {[%clk 0:02:43]} 15. b3 {[%clk 0:02:21]}  Qe7 {[%clk 0:02:42]} 16. Bg5 {[%clk 0:02:21]}  Rh8 {[%clk 0:02:40]} 17. gxh5 {[%clk 0:02:19]}  gxh5 {[%clk 0:02:37]} 18. Ng3 {[%clk 0:02:18]}  Kg8 {[%clk 0:02:32]} 19. Be2 {[%clk 0:02:04]}  h4 {[%clk 0:02:31]} 20. Nf5 {[%clk 0:02:01]}  Bxf5 {[%clk 0:02:32]} 21. exf5 {[%clk 0:02:02]}  Kf8 {[%clk 0:02:32]} 22. Rg2 {[%clk 0:02:01]}  Qd7 {[%clk 0:02:32]} 23. Qc2 {[%clk 0:01:59]}  Nh5 {[%clk 0:02:23]} 24. Rdg1 {[%clk 0:01:33]}  Bf6 {[%clk 0:02:21]} 25. b4 {[%clk 0:01:24]}  Na6 {[%clk 0:02:21]} 26. b5 {[%clk 0:01:18]}  Nc5 {[%clk 0:02:17]} 27. Bxf6 {[%clk 0:01:07]}  Nxf6 {[%clk 0:02:17]} 28. Ne4 {[%clk 0:00:56]}  Qxf5 {[%clk 0:01:39]} 29. Rg5 {[%clk 0:00:55]}  Qf4 {[%clk 0:01:39]} 30. Nxc5 {[%clk 0:00:33]}  dxc5 {[%clk 0:01:36]} 31. Rf5 {[%clk 0:00:31]}  Qd4 {[%clk 0:01:37]} 32. Rd1 {[%clk 0:00:28]}  Qe3 {[%clk 0:01:12]} 33. Rxf6 {[%clk 0:00:26]}  Rg8 {[%clk 0:01:09]} 34. Qd3 {[%clk 0:00:20]}  Qf2 {[%clk 0:01:05]} 35. Qf5 {[%clk 0:00:19]}  Rg7 {[%clk 0:01:02]} 36. Qe4 {[%clk 0:00:17]}  Ra4 {[%clk 0:00:49]} 37. d6 {[%clk 0:00:15]}  cxd6 {[%clk 0:00:46]} 38. Rfxd6 {[%clk 0:00:15]}  Rb4+ {[%clk 0:00:40]} 39. Ka1 {[%clk 0:00:15]}  Rg5 {[%clk 0:00:19]} 40. Rd8+ {[%clk 0:00:11]}  Kg7 {[%clk 0:00:19]} 41. R8d2 {[%clk 0:00:05]}  Qh2 {[%clk 0:00:06]} 42. Bd3 {[%clk 0:00:05]}  Qxd2 {[%clk 0:00:03]} 43. Rxd2 {[%clk 0:00:04]}  Rg1+ {[%clk 0:00:04]} 44. Bb1 {[%clk 0:00:05]}  Rgxb1+ {[%clk 0:00:02]} 45. Qxb1 {[%clk 0:00:06]}  Rxb1+ {[%clk 0:00:01]} 46. Kxb1 {[%clk 0:00:07]}  Kf6 {[%clk 0:00:02]} 47. Kc2 {[%clk 0:00:08]}  e4 {[%clk 0:00:01]} 48. fxe4 {[%clk 0:00:08]}  Ke5 {[%clk 0:00:02]} 49. Kd3 {[%clk 0:00:08]}  Kf4 {[%clk 0:00:02]} 50. Rg2 {[%clk 0:00:09]}  Kf3 {[%clk 0:00:02]} 51. Rg4 {[%clk 0:00:09]}  f5 {[%clk 0:00:02]} 52. exf5 {[%clk 0:00:10]} 1-0


[Site "https://www.chess.com"]

[Event "Titled Tuesday Blitz February 21 Late 2023"]
[White "Comas Fabrego, Lluis"]
[Black "Vovk, Orest"]
[WhiteFideId "2200325"]
[BlackFideId "14113490"]
[WhiteElo "2424"]
[BlackElo "2315"]
[Result "0-1"]
[Round "01"]
[TimeControl "180+2"]
[Date "2023.02.21"]
[WhiteClock "0:00:03"]
[BlackClock "0:00:36"]

1. Nf3 {[%clk 0:02:59]}  h6 {[%clk 0:02:57]} 2. d4 {[%clk 0:02:58]}  g5 {[%clk 0:02:57]} 3. h3 {[%clk 0:02:57]}  Bg7 {[%clk 0:02:56]} 4. e4 {[%clk 0:02:57]}  c5 {[%clk 0:02:56]} 5. Nc3 {[%clk 0:02:56]}  cxd4 {[%clk 0:02:50]} 6. Nxd4 {[%clk 0:02:54]}  Nc6 {[%clk 0:02:50]} 7. Be3 {[%clk 0:02:52]}  d6 {[%clk 0:02:49]} 8. Be2 {[%clk 0:02:50]}  Nf6 {[%clk 0:02:44]} 9. Qd2 {[%clk 0:02:43]}  Qa5 {[%clk 0:02:43]} 10. Nb3 {[%clk 0:02:32]}  Qe5 {[%clk 0:02:39]} 11. Rd1 {[%clk 0:01:59]}  Nxe4 {[%clk 0:02:31]} 12. Nxe4 {[%clk 0:01:47]}  Qxe4 {[%clk 0:02:32]} 13. Bf3 {[%clk 0:01:41]}  Qe5 {[%clk 0:02:32]} 14. c3 {[%clk 0:01:40]}  O-O {[%clk 0:02:27]} 15. Nd4 {[%clk 0:01:40]}  Nxd4 {[%clk 0:02:25]} 16. cxd4 {[%clk 0:01:29]}  Qb5 {[%clk 0:02:24]} 17. Be2 {[%clk 0:01:27]}  Qd5 {[%clk 0:02:20]} 18. Bf3 {[%clk 0:01:15]}  Qxa2 {[%clk 0:02:19]} 19. Kf1 {[%clk 0:01:15]}  Bf5 {[%clk 0:02:12]} 20. g4 {[%clk 0:01:14]}  Bg6 {[%clk 0:02:12]} 21. h4 {[%clk 0:01:15]}  Rac8 {[%clk 0:01:56]} 22. Rc1 {[%clk 0:01:00]}  Rxc1+ {[%clk 0:01:49]} 23. Qxc1 {[%clk 0:01:01]}  Qb1 {[%clk 0:01:45]} 24. Qxb1 {[%clk 0:01:00]}  Bxb1 {[%clk 0:01:45]} 25. hxg5 {[%clk 0:00:59]}  hxg5 {[%clk 0:01:45]} 26. Bxg5 {[%clk 0:00:58]}  Bxd4 {[%clk 0:01:40]} 27. Bxe7 {[%clk 0:00:58]}  Rc8 {[%clk 0:01:31]} 28. Bxd6 {[%clk 0:00:28]}  Rc2 {[%clk 0:01:20]} 29. Rh2 {[%clk 0:00:21]}  Rxb2 {[%clk 0:01:17]} 30. g5 {[%clk 0:00:19]}  a5 {[%clk 0:01:04]} 31. Bd5 {[%clk 0:00:18]}  Bg6 {[%clk 0:00:56]} 32. Rh4 {[%clk 0:00:12]}  Bd3+ {[%clk 0:00:38]} 33. Kg2 {[%clk 0:00:03]}  Bxf2 {[%clk 0:00:36]} 0-1


[Site "https://www.chess.com"]

[Event "Titled Tuesday Blitz February 21 Late 2023"]
[White "Huang, Alex"]
[Black "Kourkoulos-Arditis, Stamatis"]
[WhiteFideId "4302508"]
[BlackFideId "4221990"]
[WhiteElo "2009"]
[BlackElo "2539"]
[Result "0-1"]
[Round "01"]
[TimeControl "180+2"]
[Date "2023.02.21"]
[WhiteClock "0:00:23"]
[BlackClock "0:01:31"]

1. d4 {[%clk 0:02:53]}  c5 {[%clk 0:02:56]} 2. d5 {[%clk 0:02:40]}  Nf6 {[%clk 0:02:55]} 3. Nc3 {[%clk 0:02:37]}  g6 {[%clk 0:02:55]} 4. e4 {[%clk 0:02:37]}  d6 {[%clk 0:02:56]} 5. Nf3 {[%clk 0:02:38]}  Bg7 {[%clk 0:02:56]} 6. a4 {[%clk 0:02:27]}  O-O {[%clk 0:02:55]} 7. h3 {[%clk 0:02:27]}  e6 {[%clk 0:02:55]} 8. Be2 {[%clk 0:02:23]}  exd5 {[%clk 0:02:55]} 9. exd5 {[%clk 0:02:21]}  Bf5 {[%clk 0:02:54]} 10. O-O {[%clk 0:02:18]}  Ne4 {[%clk 0:02:54]} 11. Nxe4 {[%clk 0:02:13]}  Bxe4 {[%clk 0:02:55]} 12. c3 {[%clk 0:02:10]}  Re8 {[%clk 0:02:50]} 13. Re1 {[%clk 0:01:56]}  Bxf3 {[%clk 0:02:27]} 14. Bxf3 {[%clk 0:01:52]}  Rxe1+ {[%clk 0:02:28]} 15. Qxe1 {[%clk 0:01:53]}  Nd7 {[%clk 0:02:28]} 16. Bf4 {[%clk 0:01:48]}  Ne5 {[%clk 0:02:27]} 17. Be2 {[%clk 0:01:48]}  Qh4 {[%clk 0:02:11]} 18. Bg3 {[%clk 0:01:46]}  Qe4 {[%clk 0:02:10]} 19. Qd2 {[%clk 0:01:43]}  Re8 {[%clk 0:02:06]} 20. Bb5 {[%clk 0:01:33]}  Re7 {[%clk 0:02:04]} 21. Re1 {[%clk 0:01:33]}  Qxe1+ {[%clk 0:02:00]} 22. Qxe1 {[%clk 0:01:19]}  Nf3+ {[%clk 0:02:00]} 23. gxf3 {[%clk 0:01:19]}  Rxe1+ {[%clk 0:02:00]} 24. Kg2 {[%clk 0:01:20]}  Be5 {[%clk 0:01:52]} 25. f4 {[%clk 0:01:18]}  Bf6 {[%clk 0:01:52]} 26. Bc4 {[%clk 0:00:49]}  Rb1 {[%clk 0:01:46]} 27. b3 {[%clk 0:00:47]}  Bxc3 {[%clk 0:01:45]} 28. Bh4 {[%clk 0:00:47]}  Kf8 {[%clk 0:01:43]} 29. Bb5 {[%clk 0:00:42]}  Rxb3 {[%clk 0:01:38]} 30. Bd8 {[%clk 0:00:42]}  a6 {[%clk 0:01:33]} 31. Bc4 {[%clk 0:00:36]}  Rb4 {[%clk 0:01:33]} 32. Bd3 {[%clk 0:00:31]}  Rxa4 {[%clk 0:01:34]} 33. Kf3 {[%clk 0:00:30]}  b5 {[%clk 0:01:31]} 34. Bc7 {[%clk 0:00:28]}  Ke7 {[%clk 0:01:31]} 35. Bb6 {[%clk 0:00:23]}  f5 {[%clk 0:01:31]} 0-1


[Site "https://www.chess.com"]